Cogmind - Beta 16.1 @@@ ROGUE MODE // 2026.05.02 @ 23:48:42 Player: Stavbearer Result: Destroyed by Y-54 Guardian via exploding Fusion Modulator Performance ------------- Evolutions (3) 1500 Regions Visited (7) 1400 Robots Destroyed (69) 345 Value Destroyed (1762) 1762 Prototype IDs (13) 260 Alien Tech Used (0) 0 Bonus (-19) -19 TOTAL SCORE: 5248 Bonus ------- Friendly Fire -19 Cogmind --------- Core Integrity 0/700 Matter 162/300 Energy 218/290 System Corruption 14% Temperature Cool (12) Movement Core (300) Ox5 Location -7/Factory Parts ------- > --- POWER (1) -------- Improved Deuterium Engine > --- PROPULSION (2) --- (None) > --- UTILITY (7) ------ (None) > --- WEAPON (3) ------- Cooled Phase Gun > --- INVENTORY (5) ---- Kinecellerator Precision Rocket Launcher Peak State ------------ > --- POWER ------------ Cooled Deuterium Engine > --- PROPULSION ------- VSS Leg Flexi-carbon Leg > --- UTILITY ---------- Small Storage Unit Compact Battery Machine Analyzer Improved Sensor Array Improved Signal Interpreter Target Analyzer Medium Reflective Plating > --- WEAPON ----------- Cooled Phase Gun Cooled Phase Gun Cooled Phase Gun > --- INVENTORY -------- Improved Deuterium Engine Micro Nuclear Core Carbon-fiber Leg Improved Heat Sink Shield Generator Cooled Phase Gun Precision Rocket Launcher Improved Datajack [Rating: 60] Favorites ----------- Power Cooled Deuterium Engine Engine Cooled Deuterium Engine Power Core Light Nuclear Core Propulsion Compact Wheel Treads Medium Treads Leg VSS Leg Wheel Compact Wheel Flight Unit Improved VTOL Module Utility Small Storage Unit Device Improved Sensor Array Storage Small Storage Unit Processor Improved Signal Interpreter Protection Improved Light Armor Plating Weapon Enhanced Autogun Energy Gun Subdweller Laser Energy Cannon Subdweller Beam Cannon Ballistic Gun Enhanced Autogun Ballistic Cannon Gauss Cannon Launcher Precision Rocket Launcher Special Weapon Flamer Special Melee Weapon Improved Datajack Build | -11 -10 -10 -10 -8 -7 -7 -7 ------- Run | Yrd Mat Min Sub Mat Fac Was Fac Slots Evolved 6 | . . . . 4 2 . . Power . | . . . . . . . . Propulsion . | . . . . . . . . Utility 5 | . . . . 3 2 . . Weapon 1 | . . . . 1 . . . Parts Attached 82 | 7 1 9 9 21 29 1 5 Power 10 | 1 . 1 3 1 2 . 2 Engine 7 | 1 . 1 3 . 1 . 1 Core 3 | . . . . 1 1 . 1 Reactor . | . . . . . . . . Propulsion 20 | 2 1 4 1 2 8 . 2 Treads 3 | . . . . . 3 . . Leg 4 | . . . . . 2 . 2 Wheel 12 | 2 1 4 1 1 3 . . Hover . | . . . . . . . . Flight 1 | . . . . 1 . . . Utility 18 | 2 . 2 1 6 6 1 . Device 7 | 1 . 1 . 3 1 1 . Storage 3 | 1 . . . 1 1 . . Processor 4 | . . . . 2 2 . . Hackware . | . . . . . . . . Protection 4 | . . 1 1 . 2 . . Artifact . | . . . . . . . . Weapon 34 | 2 . 2 4 12 13 . 1 Energy Gun 13 | 1 . . 1 3 7 . 1 Energy Cannon 2 | . . . 1 1 . . . Ballistic Gun 9 | 1 . 1 . 4 3 . . Ballistic Cannon 4 | . . . . 3 1 . . Launcher 1 | . . . . . 1 . . Special Weapon 4 | . . 1 2 1 . . . Impact Weapon . | . . . . . . . . Slashing Weapon . | . . . . . . . . Piercing Weapon . | . . . . . . . . Special Melee Weapon 1 | . . . . . 1 . . Unidentified Prototypes 9 | . . . . 3 6 . . Corrupted Parts 1 | . . 1 . . . . . System Corruption 1 | . . 1 . . . . . Parts Lost 25 | . . 2 . 4 10 7 2 Power 3 | . . . . 1 . 1 1 Propulsion 4 | . . . . 1 2 . 1 Utility 9 | . . 1 . . 3 5 . Weapon 9 | . . 1 . 2 5 1 . Highest Loss Streak 7 | . . 1 . 2 6 7 2 To Critical Strikes . | . . . . . . . . Average Backups 5 | . 3 5 4 5 6 6 3 Power . | . . . . . 1 2 . Propulsion 1 | . 2 2 1 . . 1 . Utility 1 | . . 2 2 2 1 . . Weapon 1 | . . . . . 1 2 1 Tool/Special . | . . . . . . . . Unused Backups 3 | . . . 1 . 1 . 1 Power . | . . . . . . . . Propulsion . | . . . . . . . . Utility 3 | . . . 1 . 1 . 1 Weapon . | . . . . . . . . Tool/Special . | . . . . . . . . Average Slot Usage (%) 92 | . 100 98 84 95 96 70 19 Engine 7 | . 14 14 13 5 5 5 1 Core 1 | . . . . 3 1 . 4 Treads 3 | . . . . . 7 . . Leg 1 | . . . . . 1 10 6 Wheel 13 | . 28 28 28 17 4 . . Device 8 | . 14 10 . 14 8 10 . Storage 10 | . 14 14 . 11 13 11 . Processor 13 | . . . . 12 23 18 . Protection 5 | . . 2 13 2 5 . . Energy Gun 5 | . 14 1 6 7 3 12 5 Ballistic Gun 13 | . 14 25 6 8 16 . . Ballistic Cannon 1 | . . . . 2 1 . . Special Weapon 3 | . . 1 10 7 . . . Peak Build Rating 60 | 7 7 7 13 31 60 60 17 Average Rating 28 | 5 7 6 11 23 43 38 15 On Entrance 15 | . 7 7 7 12 31 60 2 Avg Prop Armor Cover (%) 5 | . . . 1 . 6 . . Naked Turns 36 | . . . . . . 34 2 Heaviest Build 45 | 13 13 14 35 39 45 31 16 Greatest Support 56 | 32 32 32 30 26 56 32 25 Greatest Overweight (x) 3 | . . . 2 2 3 2 1 Average Overweight (x) . | . . . . . . . . Largest Inventory Capacity 8 | 8 8 8 8 8 8 8 5 Average Capacity 7 | 7 8 8 5 7 8 6 5 Most Carried 8 | 3 5 8 6 8 8 8 5 Average Carried 5 | . 3 5 4 6 6 6 2 Final Capacity 8 | 8 8 8 5 8 8 5 5 Final Carried 8 | 2 5 5 5 8 8 5 2 Class Distribution -------------------- 44% | Skirmisher 15% | Mutant 11% | Scavenger-Skirmisher 10% | Scavenger-Mutant 8% | Subdweller-Mutant 5% | Subdweller-Tank 4% | Gunner Dominant Class ---------------- Mutant | -10/Materials Scavenger-Mutant | -10/Mines Subdweller-Mutant | -10/Subcaves Scavenger-Skirmisher | -8/Materials Skirmisher | -7/Factory Scavenger-Skirmisher | -7/Waste Mutant | -7/Factory Resources | -11 -10 -10 -10 -8 -7 -7 -7 ----------- Run | Yrd Mat Min Sub Mat Fac Was Fac Matter Collected 2659 | 220 80 167 199 449 1544 . . Remotely . | . . . . . . . . Salvage Created 2476 | 70 189 174 54 595 1184 . 210 Parts 141 | 4 8 22 6 26 69 . 6 Haulers Intercepted 2 | . . . . 2 . . . Recyclers Shooed 3 | . . . . 1 2 . . Parts Field Recycled . | . . . . . . . . Retrieved Matter . | . . . . . . . . Parts Self-Destructed 1 | . . . 1 . . . . Prevented . | . . . . . . . . Parts Restored . | . . . . . . . . Kills | -11 -10 -10 -10 -8 -7 -7 -7 ------- Run | Yrd Mat Min Sub Mat Fac Was Fac Combat Hostiles Destroyed 39 | . 2 4 1 10 18 . 4 Guns 32 | . 2 4 1 6 16 . 3 Cannons 5 | . . . . 3 2 . . Classes Destroyed 15 | 2 1 3 2 1 5 . 1 Worker 7 | . . 1 . 2 4 . . Builder 7 | . . 2 . . 5 . . Tunneler 5 | 1 . 3 . . 1 . . Hauler 2 | . . . . 2 . . . Recycler 7 | 1 1 . . 2 3 . . Mechanic 1 | . . . . . 1 . . Watcher 1 | . . . . . 1 . . Swarmer 11 | . . 3 . 3 5 . . Grunt 19 | . 2 1 . 7 6 . 3 Brawler 1 | . . . . . . . 1 Sentry 2 | . . . . . 2 . . Hunter 1 | . . . . . 1 . . Programmer 4 | . . . . . 4 . . Artisan 2 | . . . 2 . . . . Subdweller 1 | . . . 1 . . . . Best Kill Streak 10 | 2 3 3 1 10 8 . 3 Combat Bots Only 7 | . 2 3 1 7 4 . 3 Max Kills in Single Turn 2 | 1 1 2 1 1 2 . 1 Gunslinging 1 | . . 1 . . 1 . . Exploded . | . . . . . . . . Melee . | . . . . . . . . Uniques/NPCs Destroyed . | . . . . . . . . Combat | -11 -10 -10 -10 -8 -7 -7 -7 -------- Run | Yrd Mat Min Sub Mat Fac Was Fac Hostile Shots Fired 331 | . 9 28 19 47 177 9 42 Missed 80 | . . 5 4 11 48 . 12 Hits 251 | . 9 23 15 36 129 9 30 Melee 15 | . . . . . . 9 6 Projectile 236 | . 9 23 15 36 129 . 24 AOE 3 | . . . . . 2 . 1 Critical Strikes 19 | . . 1 1 . 10 6 1 Part Disruptions 1 | . . . . . 1 . . Damage Taken 3931 | . 161 234 367 413 1764 422 570 Core 904 | . 52 50 . 41 149 373 239 Absorbed by Shields 20 | . . . . . 20 . . Ignored by Resistances 30 | . . . . . 30 . . Regen/Repaired (Parts) 15 | . . . . . 15 . . Core Remaining (%) 83 | 100 . . 59 92 . . . Volleys Fired 239 | 2 11 36 27 32 99 6 26 Largest 3 | 2 2 2 2 3 3 3 1 Hottest 260 | 60 60 60 200 260 115 78 26 Shots Fired 536 | 4 22 66 53 92 255 18 26 Gun 438 | 4 22 61 28 52 227 18 26 Cannon 54 | . . . 14 15 25 . . Launcher . | . . . . . . . . Special 44 | . . 5 11 25 3 . . Kinetic 338 | 2 11 55 10 38 222 . . Thermal 157 | . . 5 43 54 11 18 26 Explosive . | . . . . . . . . Electromagnetic 41 | 2 11 6 . . 22 . . Robot Hit Streak 11 | 3 6 6 7 11 11 7 11 Robot Miss Streak 4 | . 1 4 1 4 3 2 4 Penetration Max 1 | . . . . 1 . . . Secondary Targets 3 | . . 1 . . 2 . . Max Gunslinging Chain 1 | . . 1 . . 1 . . Shots Hit Robots 305 | 3 14 37 28 48 141 14 20 Core Hits 123 | 2 7 16 7 26 55 2 8 Critical Kills 4 | . . 1 1 . 2 . . Critical Parts Destroyed 5 | . . 1 . . 4 . . Critical Strikes 16 | . . 2 2 1 8 2 1 Burn 5 | . . . 1 1 . 2 1 Destroy 9 | . . 2 1 . 6 . . Blast 2 | . . . . . 2 . . Melee Attacks 5 | . . . . . 5 . . Impact . | . . . . . . . . Slashing . | . . . . . . . . Piercing . | . . . . . . . . Sneak Attacks . | . . . . . . . . Combat Hostiles . | . . . . . . . . Follow-up Attacks . | . . . . . . . . Damage Inflicted 5514 | 66 183 371 358 871 2753 391 521 Guns 4616 | 28 183 366 190 530 2407 391 521 Cannons 502 | . . . 83 192 227 . . Explosions 38 | 38 . . . . . . . Melee . | . . . . . . . . Ramming 119 | . . . . . 119 . . Kinetic 3325 | . 92 333 69 380 2451 . . Thermal 1762 | 38 . 5 289 491 27 391 521 Explosive . | . . . . . . . . Electromagnetic 308 | 28 91 33 . . 156 . . Impact . | . . . . . . . . Slashing . | . . . . . . . . Piercing . | . . . . . . . . Highest Corruption 14 | . . 1 1 . 9 9 14 Average Corruption 5 | . . 1 1 . 6 9 10 Corruption Purged . | . . . . . . . . Corruption Blocked . | . . . . . . . . Effects 60 | . . 1 3 . 49 4 3 Message Errors 17 | . . 1 1 . 14 . 1 Matter Fused 13 | . . . . . 9 3 1 Heat Flow Errors 1 | . . . . . 1 . . Energy Discharges 14 | . . . 2 . 12 . . Parts Rejected 2 | . . . . . 1 . 1 Parts Fused 1 | . . . . . 1 . . Data Loss (minor) 3 | . . . . . 2 1 . Data Loss (major) 1 | . . . . . 1 . . Misfires 2 | . . . . . 2 . . Alerts 1 | . . . . . 1 . . Weapon Failures 5 | . . . . . 5 . . Overload Shots . | . . . . . . . . Overflow Damage 2 | . . . . . 2 . . Projectiles 2 | . . . . . 2 . . Explosions . | . . . . . . . . Melee . | . . . . . . . . Knockbacks 3 | . . . . . 3 . . Impact 1 | . . . . . 1 . . Kinetic 2 | . . . . . 2 . . Secondary . | . . . . . . . . Self-Inflicted Damage . | . . . . . . . . Shots . | . . . . . . . . Rammed 26 | . . . . . 26 . . Targets Rammed 27 | . . . . . 27 . . Kicked . | . . . . . . . . Crushed 1 | . . . . . 1 . . Highest Temperature 216 | . 72 24 66 216 181 . . Average Temperature 57 | . 32 9 19 115 32 . . Received Heat Transfer 870 | . 72 99 81 144 324 . 150 Siege Activations . | . . . . . . . . Martial Activations . | . . . . . . . . Shielding Activations . | . . . . . . . . Robots Disrupted . | . . . . . . . . Combat Hostiles . | . . . . . . . . Robots Corrupted . | . . . . . . . . Combat Hostiles . | . . . . . . . . Parts Fried . | . . . . . . . . Impact Corruptions . | . . . . . . . . Robots Melted 2 | . . . . 1 . . 1 Combat Hostiles 2 | . . . . 1 . . 1 Parts Melted 5 | . . . 1 3 . . 1 Heat Transferred 4364 | 50 . 50 1061 1649 37 703 814 Parts Sabotaged . | . . . . . . . . Parts Stolen . | . . . . . . . . Parts Stripped . | . . . . . . . . Power Chain Reactions 1 | 1 . . . . . . . Alert | -11 -10 -10 -10 -8 -7 -7 -7 ------- Run | Yrd Mat Min Sub Mat Fac Was Fac Maximum Alert Level . | . . . . . . . . Low Security (%) 100 | 100 100 100 . 100 100 100 100 Level 1 . | . . . . . . . . Level 2 . | . . . . . . . . Level 3 . | . . . . . . . . Level 4 . | . . . . . . . . Level 5 . | . . . . . . . . High Security . | . . . . . . . . Max Security . | . . . . . . . . Peak Influence 183 | 10 52 60 . 111 183 52 50 Initial 52 | . . 4 . . 2 52 . Average 47 | 2 20 15 . 31 71 22 9 Influence Increases 1351 | 10 83 165 . 311 692 . 90 Destroy 0b10 Robot/C 760 | . 40 80 . 200 360 . 80 Destroy 0b10 Robot/NC 150 | 10 5 30 . 30 75 . . Destroy Leader 166 | . 10 10 . 34 102 . 10 Successful Hack 76 | . 11 . . 24 41 . . Disable Machine 45 | . 15 . . 15 15 . . Destroy Structure 19 | . 2 . . 8 9 . . Partial Spotted 15 | . . . . . 15 . . Lose Combat Pursuer 120 | . . 45 . . 75 . . Influence Decreases 1301 | 10 70 178 . 306 547 150 40 Entered New Map 110 | . . 9 . . 3 98 . Time Decay 1039 | 10 70 149 . 266 474 40 30 Lost Part 152 | . . 20 . 40 70 12 10 Squads Dispatched 9 | . . . . 2 7 . . Investigation 3 | . . . . 1 2 . . Extermination 3 | . . . . . 3 . . Reinforcement 3 | . . . . 1 2 . . Assault . | . . . . . . . . Garrison . | . . . . . . . . Intercept . | . . . . . . . . Searches Triggered . | . . . . . . . . Construction Impeded 2 | . . . . . 2 . . Haulers Reinforced . | . . . . . . . . Active Scanning Responses . | . . . . . . . . Cargo Convoy Interrupts 1 | . . . . . 1 . . Stealth | -11 -10 -10 -10 -8 -7 -7 -7 --------- Run | Yrd Mat Min Sub Mat Fac Was Fac Distress Signals 3 | . . . . 3 . . . Communications Jammed . | . . . . . . . . Distress Signals . | . . . . . . . . Times Spotted 77 | . 2 7 10 13 34 6 5 Peak Tracking Total 8 | . 2 3 4 4 8 6 5 Tactical Retreats 6 | . . 2 . . 4 . . Traps | -11 -10 -10 -10 -8 -7 -7 -7 ------- Run | Yrd Mat Min Sub Mat Fac Was Fac Traps Triggered 4 | . 1 . . . 3 . . Indirectly . | . . . . . . . . Trap Hack Attempts . | . . . . . . . . Triggered . | . . . . . . . . Disarmed . | . . . . . . . . Reprogrammed . | . . . . . . . . Reused . | . . . . . . . . Traps Extracted . | . . . . . . . . Installed . | . . . . . . . . Triggered . | . . . . . . . . Machines | -11 -10 -10 -10 -8 -7 -7 -7 ---------- Run | Yrd Mat Min Sub Mat Fac Was Fac Machines Disabled 3 | . 1 . . 1 1 . . Max in Single Turn 1 | . 1 . . 1 1 . . Garrison Access 2 | . . . . 1 1 . . Machines Repaired . | . . . . . . . . Machines Dismantled . | . . . . . . . . Machines Sabotaged . | . . . . . . . . Overloaded Fab Kills . | . . . . . . . . Hacking | -11 -10 -10 -10 -8 -7 -7 -7 --------- Run | Yrd Mat Min Sub Mat Fac Was Fac Machines Accessed 21 | . 2 . 2 7 10 . . Terminals 12 | . 2 . . 4 6 . . Fabricators . | . . . . . . . . Repair Stations 1 | . . . . . 1 . . Recycling Units 1 | . . . . 1 . . . Scanalyzers 3 | . . . . 1 2 . . Garrison Access 2 | . . . . 1 1 . . Total Hacks 51 | . 8 . 3 18 22 . . Successful 25 | . 4 . 3 9 9 . . Failed 25 | . 4 . . 8 13 . . Catastrophic 4 | . 1 . . 1 2 . . Database Lockouts 1 | . . . . 1 . . . Manual 18 | . 2 . . 9 7 . . Terminals 30 | . 8 . . 12 10 . . Fabricators . | . . . . . . . . Repair Stations 3 | . . . . . 3 . . Recycling Units 3 | . . . . 3 . . . Scanalyzers 7 | . . . . 1 6 . . Garrison Access 5 | . . . . 2 3 . . Terminal Hacks 16 | . 3 . 3 6 4 . . Record 1 | . . . 1 . . . . Prototype ID Bank 2 | . . . . 1 1 . . Open Door 1 | . . . 1 . . . . Open DSF 1 | . . . . . 1 . . Emergency Access Points 2 | . 1 . . 1 . . . Dispatch Records 2 | . . . . 1 1 . . Surveillance Status 1 | . . . . 1 . . . Patrol Status 1 | . 1 . . . . . . Garrison Status 1 | . . . . 1 . . . Zone Layout 3 | . 1 . . 1 1 . . Release Object 1 | . . . 1 . . . . Fabricator Hacks . | . . . . . . . . Repair Station Hacks 2 | . . . . . 2 . . Scan Component 1 | . . . . . 1 . . Repair 1 | . . . . . 1 . . Recycling Unit Hacks 2 | . . . . 2 . . . Report Inventory 1 | . . . . 1 . . . Retrieve Components 1 | . . . . 1 . . . Scanalyzer 2 | . . . . . 2 . . Insert Component 1 | . . . . . 1 . . Analyze 1 | . . . . . 1 . . Garrison Access Hacks 2 | . . . . 1 1 . . Seal Access 2 | . . . . 1 1 . . Unauthorized Hacks 1 | . 1 . . . . . . Terminals 1 | . 1 . . . . . . Assimilate 1 | . 1 . . . . . . Fabricators . | . . . . . . . . Repair Stations . | . . . . . . . . Recycling Units . | . . . . . . . . Scanalyzers . | . . . . . . . . Garrison Access . | . . . . . . . . Data Cores Recovered . | . . . . . . . . Used . | . . . . . . . . Hacking Detections 11 | . 2 . . 4 5 . . Full Trace Events 3 | . . . . 1 2 . . Feedback Events . | . . . . . . . . Feedback Blocked . | . . . . . . . . Robot Schematics Acquired . | . . . . . . . . Robots Built . | . . . . . . . . Authchips . | . . . . . . . . Time . | . . . . . . . . Total Robot Build Rating . | . . . . . . . . Part Schematics Acquired 1 | . . . . . 1 . . Parts Built . | . . . . . . . . Authchips . | . . . . . . . . Time . | . . . . . . . . Total Part Build Rating . | . . . . . . . . Part Studies Acquired . | . . . . . . . . Parts Repaired 1 | . . . . . 1 . . Time 38 | . . . . . 38 . . Parts Recycled . | . . . . . . . . Recycled Matter . | . . . . . . . . Retrieved Matter . | . . . . . . . . Retrieved Components 10 | . . . . 10 . . . Parts Scanalyzed 1 | . . . . . 1 . . Part Schematics Acquired 1 | . . . . . 1 . . Parts Damaged . | . . . . . . . . Bothacking | -11 -10 -10 -10 -8 -7 -7 -7 ------------ Run | Yrd Mat Min Sub Mat Fac Was Fac Used RIF Installer . | . . . . . . . . Robots Hacked . | . . . . . . . . Non-combat . | . . . . . . . . Combat . | . . . . . . . . Robot Hacks Applied . | . . . . . . . . Relay Couplers Released . | . . . . . . . . Fabnet Peak Effective % . | . . . . . . . . Robots Rewired . | . . . . . . . . Allies Hacked . | . . . . . . . . Hacks Repelled . | . . . . . . . . Allies | -11 -10 -10 -10 -8 -7 -7 -7 -------- Run | Yrd Mat Min Sub Mat Fac Was Fac Total Allies . | . . . . . . . . Largest Group . | . . . . . . . . Highest-Rated Group . | . . . . . . . . Highest-Rated Ally . | . . . . . . . . Total Orders . | . . . . . . . . Ally Attacks . | . . . . . . . . Total Damage . | . . . . . . . . Kills . | . . . . . . . . Allies Corrupted . | . . . . . . . . Allies Melted . | . . . . . . . . Intel | -11 -10 -10 -10 -8 -7 -7 -7 ------- Run | Yrd Mat Min Sub Mat Fac Was Fac Active Infowar (turns) 3882 | 33 206 405 13 1032 2095 98 . Sensors 2824 | . . . . 757 1975 92 . Structural 329 | . . 316 13 . . . . Seismic 603 | 33 206 89 . 275 . . . Machine Analysis 2126 | . . . . . 2028 98 . Robot Analysis Total . | . . . . . . . . Derelict Logs Recovered 2 | . . 1 1 . . . . Drone Launches . | . . . . . . . . Drone Recoveries . | . . . . . . . . Exploration | -11 -10 -10 -10 -8 -7 -7 -7 ------------- Run | Yrd Mat Min Sub Mat Fac Was Fac Turns Passed 4838 | 59 206 520 659 1045 2095 132 122 Spaces Moved 2928 | 42 113 399 545 561 1086 133 49 Core 78 | 5 . . . . . 70 3 Treads 565 | . . . . . 565 . . Legs 225 | . . . . . 116 63 46 Wheels 2060 | 37 113 399 545 561 405 . . Hover . | . . . . . . . . Flight . | . . . . . . . . Fastest Speed 50 | 50 100 80 80 90 90 50 50 Average Speed 116 | 94 100 98 97 95 151 77 117 Slowest Speed 360 | 100 100 100 110 110 360 150 190 Overloaded Moves . | . . . . . . . . Propulsion Burnouts . | . . . . . . . . Robots Hopped . | . . . . . . . . Potential Cave-ins . | . . . . . . . . Cave-ins Triggered . | . . . . . . . . Exploration Rate (%) 32 | 4 28 78 32 26 20 71 2 Regions Visited 7 Branch Regions 2 Pre-discovered Areas 2 | . . 1 1 . . . . Known Exits Taken 1 | . . . . 1 . . . Unknown Exits Taken 4 | 1 1 1 1 . . . . Scrap Searched 1 | . . 1 . . . . . Spaces Dug 1 | . . . . . 1 . . Terrain Destroyed 22 | 3 . . 2 10 7 . . Melee . | . . . . . . . . Projectile 19 | . . . 2 10 7 . . AOE 3 | 3 . . . . . . . Terrain Rammed . | . . . . . . . . Walls Destroyed . | . . . . . . . . Machines Disabled . | . . . . . . . . Actions | -11 -10 -10 -10 -8 -7 -7 -7 --------- Run | Yrd Mat Min Sub Mat Fac Was Fac Total 3870 | 54 183 459 613 967 1359 147 88 Wait 458 | . 57 7 7 321 59 . 7 Move 2922 | 41 112 398 544 560 1086 132 49 Hop . | . . . . . . . . Pick Up 36 | 3 2 2 6 8 14 . 1 Fast Attach 30 | 7 . 1 1 9 7 4 1 Attach 28 | . . 1 3 6 12 2 4 Detach 8 | . . . 1 2 3 2 . Swap 69 | . 1 9 7 18 34 . . Drop 33 | 1 . 5 10 7 9 1 . Fire 239 | 2 11 36 27 32 99 6 26 Melee 5 | . . . . . 5 . . Ram . | . . . . . . . . Kick . | . . . . . . . . Crush 27 | . . . . . 27 . . Escape Stasis . | . . . . . . . . Rewire . | . . . . . . . . Trap . | . . . . . . . . Miscellaneous 15 | . . . 7 4 4 . . Route ------- -11/Scrapyard -10/Materials -10/Mines (discovered 2 exits: [*Mat] / *Sub) -10/Subcaves -8/Materials (discovered 2 exits: *Fac / *Sto) -7/Factory -7/Waste -7/Factory History --------- Turn | Location | Event 2 | -11/Scrapyard | Met Revision 17 39 | -11/Scrapyard | Discovered new exit (range 15) 60 | -11/Scrapyard | Entered Materials 261 | -10/Materials | Discovered new exit (range 6) 266 | -10/Materials | Entered Mines 332 | -10/Mines | Build established: Mutant 578 | -10/Mines | Discovered new exit (range 14) 585 | -10/Mines | Discovered new exit (range 9) 651 | -10/Mines | Learned location of Zion (-6) 786 | -10/Mines | Entered Subcaves 812 | -10/Subcaves | A swath of the cavern ceiling suddenly collapsed 824 | -10/Subcaves | Build established: Scavenger-Mutant 885 | -10/Subcaves | Ambushed by swarm of Subdwellers 944 | -10/Subcaves | Shifting Twisted Machinery released Battle Rifle 960 | -10/Subcaves | Shifting Twisted Machinery released Sub. Optics 995 | -10/Subcaves | Released subatomizers from SUBCON Basin 1196 | -10/Subcaves | Shifting Twisted Machinery released Flamer 1235 | -10/Subcaves | Discovered new exit (range 8) 1248 | -10/Subcaves | Build established: Subdweller-Mutant 1306 | -10/Subcaves | Shifting Twisted Machinery released Flamer 1445 | -10/Subcaves | Entered Materials 1445 | -8/Materials | Evolved 4 slots: Utility x3, Weapon x1 2013 | -8/Materials | Build established: Scavenger-Skirmisher 2092 | -8/Materials | Destroyed 7 combat bots 2170 | -8/Materials | Discovered new exit (range 15) 2224 | -8/Materials | Identified exit to Storage 2360 | -8/Materials | Discovered new exit (range 14) 2432 | -8/Materials | Central database locked down 2488 | -8/Materials | Identified exit to Factory 2490 | -8/Materials | Entered Factory 2490 | -7/Factory | Evolved 2 slots: Utility x2 2958 | -7/Factory | Repaired Imp. Sensor Array? 3271 | -7/Factory | Build established: Skirmisher 3827 | -7/Factory | Cargo convoy interrupted 4009 | -7/Factory | Lost 6 parts (1n2u3w) 4585 | -7/Factory | Sucked down chute 4585 | -7/Factory | Entered Waste 4597 | -7/Waste | Spotted C-40 Crusher 4642 | -7/Waste | Spotted C-40 Crusher 4656 | -7/Waste | Spotted C-40 Crusher 4671 | -7/Waste | Crushed by Compactor (1 part destroyed, 2 dropped) 4674 | -7/Waste | Crushed by Compactor (1 part destroyed, 2 dropped) 4675 | -7/Waste | Spotted C-40 Crusher 4677 | -7/Waste | Crushed by Compactor (1 part destroyed, 2 dropped) 4680 | -7/Waste | Crushed by Compactor (1 part destroyed, 2 dropped) 4683 | -7/Waste | Crushed by Compactor (1 part destroyed, 2 dropped) 4683 | -7/Waste | Crushed by Compactor (1 part destroyed) 4684 | -7/Waste | Core integrity fell below 50% 4690 | -7/Waste | Spotted C-40 Crusher 4698 | -7/Waste | Spotted C-40 Crusher 4706 | -7/Waste | Discovered new exit (range 16) 4714 | -7/Waste | Lost 7 parts (1p5u1w) 4717 | -7/Waste | Entered Factory 4799 | -7/Factory | System corruption reached 10% 4803 | -7/Factory | Core integrity fell below 20% 4839 | -7/Factory | Destroyed by Y-54 Guardian via exploding Fusion Modulator Last Messages --------------- 04781_ G-47 Trooper destroyed. 04784_ 4DF9Y>UGWZGQISD&WB>YFKCU, 04786_ Acquired Aluminum Leg. 04794_ Knocked back. 04798_ Mic. Nuclear Core destroyed. 04798_ System corrupted by crushing effect (+5). 04800_ System corrupted: Matter fused (-9). 04802_ Aluminum Leg destroyed. 04816_ B-48 Gladiator overheating. 04817_ B-48 Gladiator critical meltdown. 04817_ Lgt. Treads melted. 04820_ System corrupted: Carbon-fiber Leg rejected. 04820_ G-47 Trooper destroyed. 04828_ Destroyed Lgt. Nuclear Core. 04828_ G-47 Trooper suffers critical hit (Burn). 04836_ G-47 Trooper heat spikes uncontrollably. 04836_ G-47 Trooper overheating. 04836_ G-47 Trooper destroyed. 04839_ Fusion Modulator explodes. Map ----- +----------------------------------------------------+ | ????????????????????? ###????????????????????????? | | ????????????????????# !????????????????????????? | | ????????????????????# ???????????????????????? | | ?????????????????? ?# "???????????????????????? | | ?????????????? ? # "???????????????????????? | | ???????????? # "???????????????????????? | | ?????????? #=== ""??????????????????????? | | ????????? #== T"??????????????????????? | | ????????? #== ""??????????????????????? | | ????????? # ""?????? ??????????????? | | ????????? + "?????? ?????????????? | | ?????????? # ] "????? ????????????? | | ???????????? #? ????? ?????????????? | | ??????????????# #? ???? #??????????????? | | ??????????????# ###/##### #??????????????? | | ??????????????# #??????????????? | | ??????????????# #??????????????? | | ??????????????# #??????????????? | | ??????????????# #??????????????? | | ??????????????# [=! #??????????????? | | ??????????????# ###+###########??????????????? | | ????????????### # % #??????????????? | | ????????????# # #??????????????? | | ????????????# # """Y """ #??????????????? | | ????????????# # """% """ #??????????????? | | ????????????# # """@ """ #??????????????? | | ????????????# # %[%= #??????????????? | | ??????????######+##################??????????????? | | ??????????# #?????????????????????????? | | ??????????# """" """" #?????????????????????????? | | ??????????# """" """" #?????????????????????????? | | ??????????# """" """" #?????????????????????????? | | ??????????# """" """" #?????????????????????????? | | ??????????# """" """" #?????????????????????????? | | ??????????# """" """" #?????????????????????????? | | ??????????# """" """" #?????????????????????????? | | ??????????# #?????????????????????????? | | ??????????# #?????????????????????????? | | ??????????# #?????????????????????????? | | ??????????# #?????????????????????????? | | ??????????##############?????????????????????????? | | ?????????????????????????????????????????????????? | | ?????????????????????????????????????????????????? | | ?????????????????????????????????????????????????? | | ?????????????????????????????????????????????????? | | ?????????????????????????????????????????????????? | | | | | | | | | +----------------------------------------------------+ Best States ------------- Heat Dissipation 48 Coolant Potential 50 Energy Generation 18 Energy Capacity 510 Matter Stores 300 Matter Capacity 450 Sight Range 16 Robot Scan Range 15 Terrain Scan Density 10 Armor Coverage 800 Resistance: TH 15 Evasion (%) 55 Targeting Accuracy 6 Target Analysis 5 Recoil Reduction 2 Item Schematics ----------------- Multitool | -7/Factory | Scanalyzed Robot Schematics ------------------ None Fabricated ------------ Nothing Repaired ---------- Imp. Sensor Array | 31% | -7/Factory Studied --------- None Alien Tech Used ----------------- None Achievements -------------- Art Critic Jackpot Survival Of The Most Covered Challenges ------------ None Game ------ Seed AlloyNodeMagmablaster Manual? 0 Play Time 01:04:44 Cumulative 45.5 hours Start 2026.05.02 @ 22:20:37 End 2026.05.02 @ 23:48:42 Sessions 1 Manual Loads 0 Difficulty Rogue Special Mode None Game No. 42 Rogue 42 Adventurer 0 Explorer 0 Win Type - Total 0 Types 0/0/0/0/0/0/0/0/0/0 Lore% 12 Gallery% 28 Achievement% 20 Wizard Run 0 Options --------- Layout 2 ASCII 0 Keyboard 1 Movement Vi Keybinds 0 Fullscreen 2 Font 24/Smallcaps Map View 50x44 Zoom Use 0% Tactical HUD 1 Map Filters NONE Filters NONE Steam 1 RUN: d7e655f3-8e4e-4fb6-8b39-82c0c59f1383